bitfinex-derivatives/quotes_ETHF0:USTF0_20250905
["timestamp","ask_amount","ask_price","bid_price","bid_amount"]
[1757093844621,3.9446,4282.1,4282.0,0.4109]
[1757093844928,0.5282,4281.6,4281.5,3.6447]
[1757093845121,0.5282,4281.6,4281.5,3.8577]
[1757093845525,0.3135,4281.9,4281.8,0.7098]
[1757093845716,0.5282,4281.9,4281.8,0.7098]
[1757093846323,0.7368,4281.9,4281.8,0.4109]
[1757093846517,0.7368,4281.9,4281.5,0.239]
[1757093846712,0.7368,4281.9,4281.0,3.8647]
[1757093846925,0.3135,4281.8,4281.0,3.7457]
[1757093847117,0.5282,4281.1,4281.0,4.1566]
[1757093847822,0.3135,4281.1,4281.0,4.1566]
[1757093848122,0.5282,4281.1,4281.0,4.1566]
[1757093849017,0.118,4280.5,4279.8,3.2078]
[1757093849219,0.3135,4280.4,4279.8,0.7098]
[1757093849525,0.118,4280.5,4279.8,0.7098]
[1757093849526,0.5282,4279.9,4279.8,0.7098]
[1757093849724,0.5282,4279.9,4279.8,0.4109]
[1757093849923,0.4233,4279.9,4279.5,0.239]
[1757093850222,0.5282,4279.6,4279.5,0.9488]
[1757093850923,0.7368,4279.6,4279.5,0.4109]
[1757093851220,0.118,4280.0,4279.3,3.2078]
[1757093851221,0.7368,4279.4,4279.3,3.2078]
[1757093851823,0.7368,4279.4,4279.3,3.4057]
[1757093852213,0.7368,4279.4,4279.3,0.1979]
[1757093853218,1.15739,4279.4,4279.3,0.4109]
[1757093853422,0.42059,4279.4,4279.3,0.7098]
[1757093853721,0.42059,4279.4,4279.3,3.9176]
[1757093854023,0.42059,4279.4,4279.3,4.1566]
[1757093855819,1.05144,4279.6,4279.3,7.39028]
[1757093856020,1.05144,4279.6,4279.3,6.8577]
[1757093856228,0.4315,4280.0,4279.4,4.65425]
[1757093856422,0.2147,4279.6,4279.5,0.239]
[1757093856618,0.5282,4279.6,4279.5,0.239]
[1757093856814,0.3135,4279.6,4279.5,0.239]
[1757093858027,0.3135,4279.9,4279.5,4.47267]
[1757093858325,0.3135,4279.9,4279.8,3.2078]
[1757093858525,0.3135,4279.9,4279.8,3.4468]
[1757093859021,0.5282,4279.9,4279.8,3.4468]
[1757093859228,0.7368,4279.9,4279.8,3.4468]
[1757093859926,0.7368,4279.9,4279.8,3.2078]
[1757093860129,0.7368,4279.9,4279.8,0.239]
[1757093861930,0.4233,4279.9,4279.8,0.239]
[1757093862131,0.7368,4279.9,4279.8,0.239]
[1757093863329,1.15733,4279.9,4279.8,0.239]
[1757093866827,1.15738,4279.4,4279.3,3.2078]
[1757093867132,1.15738,4279.4,4279.3,3.4468]
[1757093867527,1.15738,4279.4,4279.3,3.2078]
[1757093867836,0.7368,4278.9,4278.8,3.2078]
[1757093868134,0.7368,4278.4,4278.3,3.2078]
[1757093868322,0.7368,4278.4,4278.3,3.4468]
[1757093868527,0.5282,4278.4,4278.3,3.4468]
[1757093868728,0.3135,4278.4,4278.3,3.4468]
[1757093870328,0.3135,4278.4,4277.3,3.2078]
[1757093870329,0.3199,4277.4,4277.3,3.2078]
[1757093870536,0.122,4277.5,4277.3,3.2078]
[1757093870834,0.122,4277.5,4277.4,40.8]
[1757093871031,0.3199,4277.4,4277.3,3.2078]
[1757093871333,0.5306,4277.4,4277.3,3.4468]
[1757093871533,0.7281,4277.4,4277.3,0.239]
[1757093871931,0.7281,4276.9,4276.8,3.2152294]
[1757093872132,0.7281,4276.9,4276.8,3.4542294]
[1757093872526,0.122,4277.0,4276.8,3.4542294]
[1757093872727,0.122,4277.0,4276.9,0.42083]
[1757093872930,0.3199,4277.3,4276.9,0.42082]
[1757093873234,0.122,4277.5,4277.0,0.2338]
[1757093873433,0.122,4277.5,4277.4,3.2078]
[1757093873434,0.4419,4277.5,4277.4,3.2078]
[1757093873636,0.3199,4277.9,4277.6,0.42075]
[1757093873933,0.3199,4277.9,4277.7,0.239]
[1757093874232,0.4419,4277.5,4277.4,3.2078]
[1757093874432,0.122,4277.5,4277.4,3.86758]
[1757093874939,0.122,4278.0,4277.6,0.42076]
[1757093875136,0.122,4278.0,4277.9,3.2078]
[1757093875336,0.3199,4278.3,4277.9,44.0078]
[1757093875532,0.3199,4278.4,4278.0,0.239]
[1757093875736,0.118,4278.5,4278.0,0.239]
[1757093876039,0.6486,4278.5,4278.4,3.2078]
[1757093876345,0.85857,4278.5,4278.4,3.4468]
[1757093876829,0.53867,4278.5,4278.4,7.4468]
[1757093877335,0.42067,4278.5,4278.4,7.86748]
[1757093877535,0.54267,4278.5,4278.4,3.2078]
[1757093877743,0.86257,4278.5,4278.4,3.4468]
[1757093878041,0.54267,4278.5,4278.4,7.4468]
[1757093878339,0.42066,4278.7,4278.4,7.68053]
[1757093878542,0.42067,4278.6,4278.5,0.42067]
[1757093878750,0.42067,4278.5,4278.4,7.4468]
[1757093878936,0.42067,4278.5,4278.4,3.4468]
[1757093879242,0.86257,4278.5,4278.4,3.4468]
[1757093879442,0.86257,4278.5,4278.4,44.2468]
[1757093880939,0.122,4279.0,4278.5,0.42067]
[1757093881138,0.54262,4279.0,4278.9,3.2078]
[1757093881337,0.42062,4279.0,4278.9,3.4468]
[1757093881734,0.86252,4279.0,4278.9,3.4468]
[1757093881937,1.05152,4279.2,4278.9,7.4468]
[1757093882241,0.42062,4279.0,4278.9,7.4468]
[1757093882438,0.86252,4279.0,4278.9,7.4468]
[1757093884738,1.27072,4279.0,4278.9,3.4468]
[1757093885145,0.86252,4279.0,4278.9,3.4468]
[1757093885847,1.07322,4279.0,4278.9,3.4468]
[1757093886349,0.86252,4279.0,4278.9,3.4468]
[1757093886846,0.54262,4279.0,4278.9,3.4468]
[1757093887043,1.07322,4279.0,4278.9,3.4468]
[1757093887241,1.07322,4279.0,4278.9,3.2078]
[1757093887242,1.27072,4279.0,4278.9,3.2078]
[1757093887440,1.27072,4279.0,4278.9,3.4478]
[1757093889449,1.27072,4279.0,4278.9,0.24]
[1757093890157,0.82889,4278.3,4278.2,3.2078]
[1757093890452,1.14879,4278.3,4278.2,0.24]
[1757093891448,1.17369,4278.5,4277.7,3.2078]
[1757093891449,1.14884,4277.8,4277.7,3.2078]
[1757093891855,1.14884,4277.8,4277.7,2.97485]
[1757093892449,1.14884,4277.8,4277.7,0.24]
[1757093893149,0.74064,4277.8,4277.7,0.24]
[1757093893347,0.74064,4277.8,4277.7,3.4478]
[1757093893547,0.95134,4277.8,4277.7,3.4478]
[1757093894149,0.74064,4277.8,4277.7,3.4478]
[1757093894349,0.3199,4278.4,4277.9,0.42073]
[1757093894545,0.3199,4278.4,4278.3,3.2078]
[1757093894746,0.3199,4278.4,4278.3,3.4488]
[1757093896854,0.3199,4277.9,4277.8,3.2078]
[1757093897057,0.3199,4277.9,4277.8,3.4498]
[1757093898060,0.122,4278.0,4277.8,3.4498]
[1757093898255,0.3199,4278.4,4277.8,7.87053]
[1757093898557,0.3199,4278.4,4278.3,3.2078]
[1757093898761,0.3199,4278.4,4278.3,3.4498]
[1757093899058,0.122,4278.5,4278.3,48.2498]
[1757093899857,0.2935,4278.4,4278.3,44.2498]
[1757093900056,0.71418,4278.4,4278.3,44.2498]
[1757093903763,0.42068,4278.4,4278.3,44.2498]
[1757093904259,0.42068,4278.4,4278.3,48.2498]
[1757093904463,0.42068,4278.5,4278.4,0.42068]
[1757093904960,0.42066,4278.7,4278.6,0.42066]
[1757093905163,0.42066,4278.7,4278.6,0.66266]
[1757093905665,0.42066,4278.7,4278.6,0.242]
[1757093906157,0.71418,4278.4,4278.3,44.0078]
[1757093906363,0.71418,4278.4,4278.3,44.2498]
[1757093907568,1.17209,4278.5,4278.3,48.67049]
[1757093907767,0.122,4279.5,4278.7,0.42064]
[1757093907953,0.122,4279.5,4279.2,3.2897]
[1757093908160,0.1204,4280.0,4279.3,0.3239]
[1757093908466,0.1204,4280.0,4279.7,3.2906]
[1757093908661,0.1204,4280.5,4279.8,0.242]
[1757093908858,0.1204,4280.5,4280.2,3.2078]
[1757093909053,0.1204,4280.5,4280.3,0.242]
[1757093909460,0.1204,4280.5,4280.2,3.2078]
[1757093909660,0.1204,4280.5,4280.3,0.242]
[1757093909855,0.2935,4280.4,4279.9,40.8]
[1757093910063,0.4139,4280.0,4279.9,40.8]
[1757093910256,4.4139,4280.0,4279.6,3.2078]
[1757093910459,0.2935,4279.9,4279.7,0.242]
[1757093910762,0.1204,4280.0,4279.7,0.242]
[1757093911856,0.2935,4279.9,4279.7,0.242]
[1757093912453,0.1204,4280.0,4279.7,0.242]
[1757093913366,0.2935,4279.9,4279.7,0.242]
[1757093913562,0.1204,4280.0,4279.7,0.242]
[1757093914269,0.2935,4279.9,4279.7,0.242]
[1757093914467,0.1204,4280.0,4279.7,0.242]
[1757093914665,0.2935,4279.9,4279.7,0.242]
[1757093914864,0.1204,4280.0,4279.7,0.242]
[1757093915470,0.2935,4279.9,4279.7,0.242]
[1757093915969,0.42054,4279.8,4279.7,0.3248]
[1757093916166,0.42054,4279.8,4279.7,0.242]
[1757093916369,0.71404,4279.8,4279.7,0.242]
[1757093916960,0.42055,4279.7,4279.6,3.2078]
[1757093917172,0.71405,4279.7,4279.6,3.4498]
[1757093917471,1.05129,4280.1,4279.7,0.50334]
[1757093917770,1.34479,4280.1,4279.9,0.0828]
[1757093917973,0.2935,4280.1,4280.0,0.242]
[1757093918578,0.1204,4280.0,4279.6,3.2078]
[1757093919064,0.1204,4280.0,4279.7,41.042]
[1757093919265,0.2935,4279.9,4279.7,40.8]
[1757093919475,0.2935,4279.9,4279.8,0.242]
[1757093919867,0.6936,4279.9,4279.8,0.242]
[1757093920067,0.6936,4279.9,4279.8,0.3744]
[1757093920381,0.6936,4279.9,4279.8,0.5068]
[1757093920568,0.4944,4279.9,4279.8,0.5068]
[1757093920763,0.2935,4280.3,4279.9,0.0828]
[1757093921069,0.2935,4280.3,4280.2,3.4726]
[1757093921070,0.4944,4280.3,4280.2,3.4726]
[1757093921271,0.4944,4280.3,4280.2,3.7146]
[1757093923876,0.2935,4280.3,4280.2,3.7146]
[1757093925078,0.6936,4280.3,4280.2,3.2078]
[1757093925374,0.6936,4280.3,4280.2,3.4488]
[1757093926477,0.6936,4280.3,4280.2,3.5812]
[1757093926975,0.4944,4280.3,4280.2,3.7136]
[1757093927277,0.2935,4280.3,4280.2,3.7964]
[1757093928184,0.2935,4280.3,4280.2,3.7136]
[1757093928474,0.1204,4281.0,4280.4,0.264]
[1757093928475,0.3131,4280.8,4280.4,0.264]
[1757093928668,0.3131,4280.8,4280.2,3.4488]
[1757093928669,0.8464,4281.0,4280.9,0.132]
[1757093928873,0.8464,4281.0,4280.9,0.373]
[1757093929573,0.4335,4281.0,4280.9,0.505]
[1757093930185,0.6422,4281.0,4280.9,0.505]
[1757093931476,0.8464,4281.0,4280.9,0.505]
[1757093931779,0.8464,4281.0,4280.9,0.373]
[1757093933686,0.6422,4281.0,4280.9,0.505]
[1757093934184,0.8464,4281.0,4280.9,0.505]
[1757093934684,0.8464,4281.0,4280.9,41.305]
[1757093936880,0.6422,4281.0,4280.9,41.305]
[1757093937478,0.4335,4281.0,4280.9,41.305]
[1757093939384,0.4335,4281.0,4280.9,40.932]
[1757093939587,0.4335,4281.0,4280.9,41.041]
[1757093940190,0.4335,4281.0,4280.9,40.8]
[1757093940490,0.4335,4281.0,4280.8,3.2078]
[1757093940491,0.726,4280.4,4279.8,3.2078]
[1757093940686,0.726,4279.9,4279.8,3.3398]
[1757093940892,0.726,4279.9,4279.8,44.3808]
[1757093941490,0.1204,4281.0,4279.8,44.3808]
[1757093941686,0.3131,4280.9,4280.8,3.4718]
[1757093941882,0.3131,4280.9,4280.8,3.7128]
[1757093942990,0.3131,4280.9,4280.8,3.7953]
[1757093945195,0.3291,4281.5,4281.4,0.264]
[1757093945389,0.3291,4281.5,4281.4,0.505]
[1757093945790,0.3131,4281.5,4281.4,3.7953]
[1757093946299,0.5218,4281.5,4281.4,3.7953]
[1757093946504,0.6478,4281.5,4281.4,3.7953]
[1757093946704,0.6478,4281.5,4281.4,3.7128]
[1757093947597,0.3131,4281.5,4281.4,3.7128]
[1757093947802,0.126,4282.0,4281.4,3.7128]
[1757093948800,0.852,4281.5,4281.4,3.7128]
[1757093949000,0.852,4281.5,4281.4,3.2078]
[1757093949200,0.852,4281.5,4281.4,3.4488]
[1757093951404,0.852,4281.5,4281.4,3.6462]
[1757093952704,0.852,4281.5,4281.4,3.8555]
[1757093954009,0.6478,4281.5,4281.4,4.064]
[1757093954204,0.3131,4281.9,4281.4,4.064]
[1757093954509,0.6478,4282.0,4281.9,0.4067]
[1757093954705,0.6478,4282.0,4281.9,0.6477]
[1757093955210,0.852,4282.0,4281.9,0.6477]
[1757093955705,0.6478,4282.0,4281.9,0.8562]
[1757093956209,0.6478,4282.0,4281.9,0.6477]
[1757093957517,0.3131,4282.0,4281.9,0.6477]
[1757093957704,0.3131,4282.0,4281.9,0.8562]
[1757093960014,0.6441,4282.0,4281.9,0.8562]
[1757093960624,0.8378,4282.0,4281.9,0.6477]
[1757093961603,0.4354,4282.0,4281.9,0.6477]
[1757093961810,0.4354,4282.0,4281.9,0.8558]
[1757093962011,0.6504,4282.0,4281.9,0.6477]
[1757093962607,0.8441,4282.0,4281.9,0.6477]
[1757093962917,0.3222,4281.5,4281.4,3.8181]
[1757093963109,0.6595,4282.0,4281.9,0.4022]
[1757093963310,0.6595,4282.0,4281.9,0.6422]
[1757093963614,0.6595,4282.0,4281.4,3.61]
[1757093963615,0.1223,4281.5,4281.4,3.61]
[1757093963812,0.4445,4282.0,4281.5,0.2081]
[1757093964017,0.6595,4282.0,4281.9,0.4022]
[1757093964314,0.6595,4282.0,4281.9,0.6432]
[1757093964516,0.6595,4282.0,4281.9,0.8513]
[1757093965116,0.8532,4282.0,4281.9,0.6432]
[1757093965509,0.8532,4281.5,4281.4,3.2078]
[1757093965817,0.8532,4281.5,4281.4,3.4488]
[1757093966114,0.8532,4281.5,4281.4,3.648]
[1757093966320,0.6595,4281.5,4281.4,4.0591]
[1757093966511,0.3222,4281.5,4281.4,4.0591]
[1757093966905,0.1223,4282.0,4281.4,4.0591]
[1757093967213,0.3222,4282.3,4281.9,0.4022]
[1757093967516,3.3338,4282.5,4282.3,0.4022]
[1757093967517,0.4087,4282.4,4282.3,0.4022]
[1757093968012,0.7309,4282.4,4282.3,0.4022]
[1757093971028,0.7309,4282.4,4282.0,0.241]
[1757093973229,0.7309,4282.4,4282.3,0.4022]
[1757093974821,0.7309,4282.4,4282.0,0.241]
[1757093976523,0.7309,4282.4,4282.3,0.1992]
[1757093976721,0.7309,4282.4,4282.3,0.4022]
[1757093976919,0.3222,4282.4,4282.3,0.6107]
[1757093977319,0.5372,4282.4,4282.3,0.6107]
[1757093979225,0.5372,4282.4,4282.3,0.4022]
[1757093979822,0.7309,4282.4,4282.3,0.4022]
[1757093982629,0.3222,4282.4,4282.3,0.6107]
[1757093982831,0.215,4283.0,4282.9,0.7184]
[1757093983129,0.4087,4283.0,4282.9,0.9584]
[1757093983325,0.531,4283.0,4282.9,0.9584]
[1757093983526,0.531,4283.0,4282.6,40.8]
[1757093983824,0.531,4283.0,4282.7,0.24]
[1757093983825,3.7388,4283.0,4282.7,0.24]
[1757093984724,0.1223,4282.5,4282.4,40.8]
[1757093984922,0.7309,4281.9,4281.8,3.2078]
[1757093985124,0.7309,4281.9,4281.8,3.407]
[1757093985428,0.7309,4281.9,4281.8,44.2478]
[1757093985934,0.7309,4281.9,4281.8,3.4478]
[1757093987627,0.215,4281.9,4281.8,4.1662]
[1757093987935,0.6595,4282.5,4282.4,0.7184]
[1757093988124,0.6595,4282.5,4282.4,0.9584]
[1757093988325,0.8532,4282.5,4282.4,0.9584]
[1757093988827,0.8532,4282.5,4282.4,0.24]
[1757093990235,0.8532,4282.5,4282.4,0.4512]
[1757093990732,0.8532,4282.5,4282.4,0.9424]
[1757093991438,0.8532,4282.5,4282.4,0.646]
[1757093991933,0.215,4282.5,4282.4,0.9424]
[1757093992841,0.8479,4282.5,4282.4,0.646]
[1757093993827,0.8479,4282.5,4282.4,0.4512]
[1757093998045,0.8479,4282.5,4282.1,0.2964]
[1757093998442,0.8479,4282.5,4282.2,0.24]
[1757093998639,0.1225,4282.0,4281.8,3.2078]
[1757093998844,0.709,4281.9,4281.8,3.2078]
[1757093999046,0.709,4281.9,4281.8,3.419]
[1757093999347,0.709,4281.9,4281.8,3.659]
[1757094000047,0.709,4281.9,4281.8,4.1502]
[1757094000444,0.709,4281.9,4281.8,3.8538]
[1757094001148,0.709,4281.9,4281.8,3.659]
[1757094001346,0.709,4281.9,4281.8,4.1502]
[1757094001748,0.5035,4282.4,4282.3,0.406]
[1757094001955,0.5035,4282.4,4282.3,0.7024]
[1757094002346,3.3301,4283.0,4282.4,0.2964]
[1757094002347,0.3049,4282.9,4282.4,0.2964]
[1757094002644,0.8315,4283.0,4282.9,0.406]
[1757094004244,0.8315,4283.0,4282.9,0.7024]
[1757094005336,0.8315,4283.0,4282.8,3.2078]
[1757094005337,0.5266,4283.0,4282.8,3.2078]
[1757094005542,0.709,4282.9,4282.8,3.419]
[1757094005943,0.709,4282.9,4282.8,3.9102]
[1757094006738,0.5035,4282.9,4282.8,3.9102]
[1757094006943,0.1986,4282.9,4282.8,3.9102]
[1757094007352,0.5035,4282.9,4282.8,3.9102]
[1757094008149,3.3301,4283.5,4282.4,0.2112]
[1757094008150,0.5266,4282.5,4282.4,0.2112]
[1757094008447,0.8315,4282.5,4282.3,3.2078]
[1757094008649,0.4041,4281.9,4281.8,3.419]
[1757094008859,0.709,4281.9,4281.8,3.659]
[1757094009151,0.709,4281.9,4281.8,4.1502]
[1757094010247,0.3049,4282.4,4281.9,0.2964]
[1757094010452,0.709,4282.4,4282.3,0.2112]
[1757094012155,0.8315,4282.0,4281.9,0.2112]
[1757094012853,0.3049,4282.9,4282.5,0.406]
[1757094013054,0.709,4282.9,4282.8,0.406]
[1757094013255,0.709,4282.9,4282.8,0.2112]
[1757094014059,0.709,4282.9,4282.8,0.406]
[1757094014358,0.709,4282.9,4282.8,0.7024]
[1757094014559,0.709,4282.9,4282.8,0.2112]
[1757094015560,0.709,4282.9,4282.5,0.24]
[1757094016059,0.709,4282.8,4282.7,0.2112]
[1757094016260,0.709,4282.8,4282.7,0.7024]
[1757094019852,0.4041,4282.8,4282.7,0.2007]
[1757094020361,0.6957,4282.8,4282.7,0.2007]
[1757094021260,0.6957,4282.8,4282.7,0.4]
[1757094022763,0.6957,4282.8,4282.7,0.7218]
[1757094022962,0.4902,4282.8,4282.7,0.7218]
[1757094023165,0.6965,4283.4,4283.3,0.2007]
[1757094024064,0.6965,4283.4,4283.0,0.3218]
[1757094024466,0.2916,4283.3,4282.9,0.5608]
[1757094024663,0.1182,4282.5,4282.3,3.2078]
[1757094024859,0.4049,4282.4,4282.3,3.2078]
[1757094025362,0.6965,4282.4,4282.3,3.2078]
[1757094025762,0.6965,4282.4,4282.3,3.4085]
[1757094026068,0.4889,4282.4,4282.3,0.7218]
[1757094027470,0.6965,4282.4,4282.3,0.7218]
[1757094027768,0.6965,4282.4,4282.3,0.4]
[1757094028165,0.6965,4282.4,4282.1,0.239]
[1757094028364,0.4049,4282.4,4282.3,0.2007]
[1757094028564,0.6965,4282.4,4282.3,0.2007]
[1757094029071,0.6965,4281.9,4281.8,0.2007]
[1757094029264,0.6965,4281.9,4281.8,0.4407]
[1757094029672,0.6965,4281.9,4281.8,0.2007]
[1757094030063,0.6965,4281.9,4281.8,0.4407]
[1757094030462,0.6965,4281.9,4281.8,0.9618]
[1757094031074,0.4889,4282.2,4282.1,0.4]
[1757094031274,0.6965,4282.2,4282.1,0.7218]
[1757094033199,0.6965,4282.2,4282.1,0.4]
[1757094033391,0.6965,4282.2,4282.1,0.7218]
[1757094033691,3.2078,4282.3,4282.2,0.7218]
[1757094033883,3.4051,4282.3,4282.2,0.9608]
[1757094034088,3.6967,4282.3,4282.2,0.9608]
[1757094034294,3.9043,4282.3,4282.2,0.9608]
[1757094035395,3.2078,4282.3,4282.2,0.9608]
[1757094035894,0.2916,4282.9,4282.6,0.4]
[1757094036196,3.2078,4283.5,4283.3,0.4]
[1757094036495,3.6967,4283.5,4283.4,0.7218]
[1757094036690,3.9043,4283.5,4283.4,0.7218]
[1757094037494,4.0225,4283.5,4283.4,0.7218]
[1757094037696,3.9043,4283.5,4283.4,0.7218]
[1757094038096,3.4468,4284.2,4283.5,0.3218]
[1757094038299,0.4889,4283.6,4283.5,0.7218]
[1757094039789,0.6965,4283.6,4283.5,0.7218]
[1757094040386,0.6965,4283.6,4283.5,0.4]
[1757094040586,0.6965,4283.6,4283.5,0.2007]
[1757094040984,0.6965,4283.6,4283.5,0.7218]
[1757094041188,0.6965,4283.6,4283.3,0.239]
[1757094041189,0.8147,4283.5,4283.4,0.239]
[1757094041589,0.8147,4283.5,4283.4,0.4397]
[1757094042402,0.2916,4283.1,4283.0,40.8]
[1757094042590,0.2916,4283.1,4283.0,41.039]
[1757094042795,0.2916,4282.7,4282.2,3.5296]
[1757094042994,0.6965,4282.4,4282.3,0.9608]
[1757094043300,0.6965,4282.4,4282.3,41.7608]
[1757094043301,0.4889,4282.4,4282.3,41.7608]
[1757094043600,0.4889,4282.4,4282.3,0.9608]
[1757094043902,0.6965,4282.4,4282.3,0.9608]
[1757094044097,0.6965,4282.4,4282.3,0.7218]
[1757094044400,0.1182,4283.0,4282.2,3.2078]
[1757094044401,0.6965,4282.3,4282.2,3.2078]
[1757094045200,0.6965,4282.3,4282.2,3.9296]
[1757094045792,0.6965,4282.3,4282.2,0.2007]
[1757094045993,0.6965,4281.8,4281.7,3.7303]
[1757094046197,0.6965,4281.8,4281.7,4.1686]
[1757094046393,0.4889,4281.8,4281.7,4.1686]
[1757094046693,0.6965,4282.4,4282.3,0.2007]
[1757094047089,0.6965,4282.4,4282.3,0.4]
[1757094047294,0.1973,4282.4,4282.3,0.9608]
[1757094047601,3.2078,4282.7,4282.6,0.7218]
[1757094047800,0.2916,4283.3,4282.7,0.3218]
[1757094048001,0.6965,4282.8,4282.7,0.7218]
[1757094048202,0.3016,4283.3,4282.8,0.2952]
[1757094048406,0.2058,4283.3,4283.2,0.698]
[1757094048695,0.2058,4283.3,4283.1,3.2078]
[1757094048696,0.7182,4283.6,4283.5,0.4028]
[1757094048900,0.7182,4283.6,4283.5,0.698]
[1757094049695,0.7182,4283.6,4283.5,0.4028]
[1757094050502,0.5074,4283.6,4283.5,0.937]
[1757094051501,0.7182,4283.6,4283.5,0.4386]
[1757094052597,0.3016,4283.9,4283.5,1.058]
[1757094052799,0.5348,4284.0,4283.9,0.1996]
[1757094053001,0.8364,4284.0,4283.9,0.1996]
[1757094053501,0.8364,4284.0,4283.5,0.239]
[1757094054001,0.8364,4284.0,4283.6,0.2952]
[1757094054598,0.5348,4284.0,4283.9,0.1996]
[1757094054900,0.8364,4284.0,4283.9,0.4028]
[1757094055802,0.8364,4284.0,4283.9,0.1996]
[1757094056500,0.8364,4284.0,4283.5,0.5342]
[1757094056501,0.5348,4284.0,4283.5,0.5342]
[1757094056703,0.7182,4283.6,4283.5,0.4386]
[1757094057205,0.7182,4283.6,4283.5,0.6418]
[1757094057505,0.7182,4283.6,4283.5,0.937]
[1757094057994,0.5074,4283.6,4283.5,0.937]
[1757094058192,0.7182,4283.6,4283.5,0.937]
[1757094058393,0.2058,4283.6,4283.5,0.937]
[1757094058593,0.2058,4283.6,4283.5,1.058]
[1757094058801,0.5074,4283.6,4283.5,1.058]
[1757094059809,0.5074,4283.6,4283.5,0.937]
[1757094060606,0.5348,4284.0,4283.9,0.1996]
[1757094060801,0.8364,4284.0,4283.9,0.1996]
[1757094061402,0.8364,4284.0,4283.9,0.698]
[1757094062102,0.8364,4284.0,4283.9,0.4028]
[1757094062302,0.8364,4284.0,4283.9,0.1996]
[1757094062499,0.5348,4284.0,4283.2,0.2952]
[1757094062702,0.7182,4283.3,4283.2,0.1996]
[1757094062897,0.7182,4283.3,4283.2,0.239]
[1757094063104,0.4166,4283.3,4283.2,0.1996]
[1757094063809,0.7182,4283.3,4283.2,0.1996]
[1757094064202,0.7182,4283.3,4283.1,3.2078]
[1757094064399,0.3016,4283.2,4283.1,3.411]
[1757094064596,0.5074,4283.2,4283.1,3.9058]
[1757094064808,0.7182,4283.4,4283.3,0.698]
[1757094065811,0.7182,4283.4,4283.3,0.4028]
[1757094066204,0.4166,4283.4,4283.1,3.2078]
[1757094066405,0.7182,4283.2,4283.1,3.4074]
[1757094067108,0.7182,4283.2,4283.1,3.6464]
[1757094067410,0.8402,4283.0,4282.9,0.239]
[1757094067605,0.8402,4283.0,4282.6,3.2078]
[1757094067606,0.5386,4283.0,4282.6,3.2078]
[1757094067806,0.5386,4283.0,4282.7,0.239]
[1757094067807,0.3016,4282.9,4282.7,0.239]
[1757094068007,0.7182,4282.9,4282.8,0.1996]
[1757094069609,0.3016,4283.5,4283.4,0.4028]
[1757094069808,0.5074,4283.5,4283.4,0.937]
[1757094070112,0.7182,4283.5,4283.4,0.937]
[1757094070514,0.5386,4283.5,4283.3,3.2078]
[1757094070712,0.7182,4283.4,4283.3,0.4386]
[1757094071109,0.7182,4283.4,4283.3,0.1996]
[1757094071309,0.7182,4283.3,4283.2,3.6464]
[1757094072821,0.7182,4283.3,4283.2,3.4074]
[1757094074512,0.7182,4283.3,4282.7,3.2078]
[1757094074714,0.4166,4282.3,4282.2,5.49681226]
[1757094075018,0.7182,4282.3,4282.2,3.6464]
[1757094075204,0.7182,4282.3,4282.2,3.8496]
[1757094075405,0.7182,4282.3,4282.2,4.1448]
[1757094075611,0.7182,4282.3,4282.2,3.8496]
[1757094076226,0.7182,4282.3,4282.2,3.6106]
[1757094076411,0.7182,4282.3,4282.2,3.8496]
[1757094077220,0.7182,4282.3,4282.2,3.4074]
[1757094077511,0.7182,4282.3,4282.2,0.4386]
[1757094077713,0.7182,4282.3,4282.0,0.239]
[1757094078306,0.7182,4282.3,4281.9,0.2952]
[1757094078307,0.122,4282.0,4281.6,3.2078]
[1757094078513,0.7047,4281.8,4281.7,0.4352]
[1757094078717,0.7047,4281.8,4281.7,0.6343]
[1757094078920,0.7047,4281.8,4281.7,0.9447]
[1757094083019,0.2924,4282.9,4282.4,0.3104]
[1757094083318,0.2924,4282.9,4282.8,0.7057]
[1757094083319,0.7047,4282.9,4282.8,0.7057]
[1757094084321,0.2924,4283.4,4282.9,0.3104]
[1757094084621,0.93817,4283.4,4283.3,0.1962]
[1757094084821,0.7047,4283.4,4283.3,0.1962]
[1757094085024,0.2924,4283.9,4283.4,0.3104]
[1757094085319,0.122,4284.0,4283.9,0.1962]
[1757094085320,0.8267,4284.0,4283.9,0.1962]
[1757094085519,0.8267,4284.0,4283.3,0.5124]
[1757094085720,0.4123,4283.4,4283.3,0.9077]
[1757094085918,0.7047,4283.4,4283.3,0.9077]
[1757094086321,0.2032,4283.4,4283.3,0.9077]
[1757094086620,0.2924,4283.9,4283.7,0.3104]
[1757094086812,0.122,4284.5,4283.7,0.3104]
[1757094086813,0.7047,4284.4,4284.3,0.7057]
[1757094087115,0.7047,4284.4,4283.3,0.4202]
[1757094087116,0.122,4283.5,4283.4,0.4352]
[1757094087317,0.8267,4283.5,4283.4,0.1962]
[1757094087520,0.4123,4282.7,4282.6,0.7057]
[1757094087710,0.7047,4282.7,4282.6,0.9447]
[1757094088323,0.7047,4282.7,4282.6,0.7057]
[1757094088624,0.7047,4282.7,4282.6,0.9447]